bitfinex-derivatives/quotes_SOLF0:USTF0_20250709
["timestamp","ask_amount","ask_price","bid_price","bid_amount"]
[1752048334207,0.04310832,152.92,152.88,0.04447919]
[1752048334815,6.5395,152.9,152.88,0.04447919]
[1752048338515,6.5392,152.91,152.88,0.04447919]
[1752048340121,6.5392,152.91,152.88,6.58467919]
[1752048341122,0.04310832,152.92,152.88,0.04447919]
[1752048342121,0.04310832,152.92,152.89,6.5398]
[1752048342321,0.04310832,152.92,152.88,0.04447919]
[1752048342821,0.04310832,152.92,152.89,2.40728434]
[1752048343325,0.04310832,152.92,152.9,6.5394]
[1752048343914,0.04310832,152.92,152.9,8.94668434]
[1752048344114,0.04310832,152.92,152.9,2.40728434]
[1752048344318,0.04310832,152.92,152.89,8.94698434]
[1752048345320,0.04310832,152.92,152.9,6.5394]
[1752048348526,0.04310832,152.92,152.9,8.94668434]
[1752048352628,6.58180832,152.92,152.9,8.94668434]
[1752048353830,6.58180832,152.92,152.9,6.5394]
[1752048354231,0.04310832,152.92,152.91,6.539]
[1752048354427,4.53345179,152.92,152.89,2.40728434]
[1752048354730,0.04310832,152.92,152.89,2.40728434]
[1752048354930,0.04310832,152.92,152.9,6.5393]
[1752048355333,0.04310832,152.92,152.9,8.94658434]
[1752048356740,6.58200832,152.92,152.89,6.5397]
[1752048356932,6.58200832,152.92,152.9,2.40728434]
[1752048357839,6.58200832,152.92,152.89,8.94698434]
[1752048358938,6.58200832,152.92,152.89,8.94746414]
[1752048359839,6.58200832,152.92,152.89,6.5397]
[1752048362842,6.539,152.91,152.89,6.5397]
[1752048363338,6.5399,152.89,152.88,0.04447919]
[1752048363938,6.58170832,152.92,152.89,6.5398]
[1752048364140,4.48984891,152.91,152.89,6.5398]
[1752048364338,6.58170832,152.92,152.89,6.5398]
[1752048364539,4.48846291,152.91,152.89,6.5398]
[1752048364840,4.37715487,152.9,152.89,6.5398]
[1752048372845,0.04310832,152.92,152.89,6.5398]
[1752048373041,4.36442246,152.91,152.9,2.40776414]
[1752048376246,8.85047279,152.91,152.88,0.04447919]
[1752048376447,8.85047279,152.9,152.88,0.04447919]
[1752048376646,4.36981446,152.89,152.88,0.04447919]
[1752048378651,15.38847209,152.89,152.88,0.04447919]
[1752048380253,10.90971446,152.89,152.88,0.04447919]
[1752048381961,6.5399,152.89,152.88,0.04447919]
[1752048382152,10.88875941,152.89,152.88,0.04447919]
[1752048385053,10.88683529,152.89,152.88,0.04447919]
[1752048390357,6.5395,152.9,152.88,0.04447919]
[1752048390558,2.40848978,152.91,152.88,0.04447919]
[1752048390752,4.33477657,152.9,152.88,0.04447919]
[1752048390957,6.5394,152.9,152.88,0.04447919]
[1752048391458,2.40848978,152.91,152.88,0.04447919]
[1752048391662,4.3347804,152.9,152.88,0.04447919]
[1752048391859,2.40848978,152.91,152.88,0.04447919]
[1752048392158,4.3347804,152.9,152.88,0.04447919]
[1752048392358,2.40848978,152.91,152.88,0.04447919]
[1752048392558,4.33480234,152.9,152.88,0.04447919]
[1752048392858,4.33480234,152.89,152.88,0.04447919]
[1752048393459,6.5399,152.89,152.88,0.04447919]
[1752048393660,10.87446238,152.89,152.88,0.04447919]
[1752048401159,11.12102661,152.89,152.82,4.5217]
[1752048401360,0.04310832,152.92,152.8,214.92898648]
[1752048401361,2.40848978,152.87,152.83,2.40848978]
[1752048401565,4.33456238,152.86,152.83,2.40848978]
[1752048401858,10.88942562,152.85,152.82,8.95138978]
[1752048402065,6.5418,152.85,152.82,8.95138978]
[1752048402463,6.58446916,152.85,152.82,8.95138978]
[1752048406467,2.45115894,152.85,152.8,2.40848978]
[1752048406665,6.73077854,152.84,152.8,2.40848978]
[1752048406866,2.40848978,152.84,152.8,2.40848978]
[1752048407271,6.5428,152.83,152.81,2.40848978]
[1752048407469,6.5428,152.83,152.8,8.95198978]
[1752048408269,6.5421,152.84,152.81,8.95168978]
[1752048408576,2.40848978,152.86,152.82,2.40848978]
[1752048408961,0.04228689,152.84,152.82,2.40848978]
[1752048409573,0.04228689,152.84,152.82,8.95118978]
[1752048410262,6.58448689,152.84,152.82,2.40848978]
[1752048410461,0.04228689,152.84,152.82,2.40848978]
[1752048410663,6.5424,152.83,152.82,2.40848978]
[1752048410869,6.5424,152.83,152.81,2.40848978]
[1752048411267,6.5425,152.83,152.8,2.40848978]
[1752048411966,6.5425,152.83,152.8,8.95218978]
[1752048412661,8.99297667,152.84,152.81,6.5433]
[1752048414373,6.5424,152.83,152.8,8.95198978]
[1752048416673,6.5424,152.83,152.81,6.5433]
[1752048420878,6.5424,152.83,152.8,8.95198978]
[1752048421078,8.99287667,152.84,152.81,2.40848978]
[1752048421977,8.99287667,152.84,152.81,8.95168978]
[1752048422569,0.04228689,152.84,152.82,8.95128978]
[1752048423072,0.04228689,152.84,152.82,6.5428]
[1752048423273,0.04228689,152.84,152.82,8.95128978]
[1752048424576,6.58428689,152.84,152.82,2.40848978]
[1752048424777,6.58428689,152.84,152.81,8.95158978]
[1752048427790,6.58428689,152.84,152.82,6.5428]
[1752048428190,0.04228689,152.84,152.81,2.40848978]
[1752048428390,0.04228689,152.84,152.82,6.5426]
[1752048429885,0.04228689,152.84,152.83,8.95088978]
[1752048430084,9.14451213,152.94,152.83,2.40848978]
[1752048430286,2.40848978,152.92,152.88,2.40848978]
[1752048430490,10.88352571,152.91,152.88,2.40848978]
[1752048430695,4.34412571,152.9,152.88,2.40848978]
[1752048430985,11.45951213,152.97,152.89,8.94828978]
[1752048431192,2.40848978,152.93,152.89,8.94828978]
[1752048431390,0.04474918,152.91,152.89,8.94828978]
[1752048435796,6.58374918,152.91,152.89,8.94828978]
[1752048436094,0.04474918,152.91,152.89,2.40848978]
[1752048436295,6.5408,152.87,152.85,2.40848978]
[1752048439098,6.5408,152.87,152.84,8.95018978]
[1752048439697,6.58904013,152.87,152.84,8.95018978]
[1752048443705,6.5412,152.86,152.83,6.5422]
[1752048443899,0.04824013,152.87,152.84,2.40848978]
[1752048444100,2.45672991,152.87,152.83,2.40848978]
[1752048444594,8.99762991,152.87,152.84,6.5419]
[1752048444994,2.45672991,152.87,152.82,2.2513]
[1752048445195,6.5412,152.86,152.83,8.95068978]
[1752048446396,6.5419,152.85,152.82,11.20258978]
[1752048446601,8.95038978,152.85,152.82,6.5428]
[1752048447106,13.29669199,152.84,152.81,6.5431]
[1752048447299,8.95068978,152.84,152.81,6.5431]
[1752048449507,8.95068978,152.84,152.82,6.5427]
[1752048449706,2.40848978,152.84,152.82,6.5427]
[1752048451810,8.95048978,152.84,152.81,8.95148978]
[1752048452005,2.40848978,152.83,152.81,6.543]
[1752048452205,8.95048978,152.84,152.81,6.543]
[1752048452908,8.95048978,152.84,152.81,8.95148978]
[1752048453101,8.95048978,152.84,152.81,6.543]
[1752048453305,8.95048978,152.84,152.81,8.95148978]
[1752048457313,8.95048978,152.84,152.81,6.543]
[1752048459316,8.95048978,152.84,152.82,6.5428]
[1752048461618,2.40848978,152.84,152.82,6.5428]
[1752048464016,6.58779243,152.85,152.82,6.5428]
[1752048464216,2.40848978,152.84,152.82,6.5428]
[1752048466021,8.99628221,152.85,152.82,6.5428]
[1752048471816,6.58779243,152.85,152.82,6.5428]
[1752048472521,6.542,152.84,152.82,6.5428]
[1752048473411,6.542,152.84,152.81,8.95168978]
[1752048474716,8.99628221,152.85,152.82,6.5428]
[1752048475423,8.99798008,152.85,152.82,6.5428]
[1752048476426,8.99798008,152.85,152.81,2.41018765]
[1752048476427,0.04599243,152.85,152.83,6.5423]
[1752048477422,6.58759243,152.85,152.82,8.95288765]
[1752048480320,4.31522971,152.84,152.82,8.95288765]
[1752048480527,6.58759243,152.85,152.82,8.95288765]
[1752048480727,4.31522971,152.84,152.82,8.95288765]
[1752048480927,6.58759243,152.85,152.82,8.95288765]
[1752048481128,4.31522971,152.84,152.82,8.95288765]
[1752048481329,6.58759243,152.85,152.82,8.95288765]
[1752048481531,4.31725445,152.84,152.83,6.5424]
[1752048481724,0.04599243,152.85,152.83,2.41018765]
[1752048482021,0.04599243,152.85,152.84,2.4086932]
[1752048482222,2.4086932,152.92,152.84,2.4086932]
[1752048482428,16.57172794,152.91,152.88,2.4086932]
[1752048482626,6.5399,152.89,152.88,2.4086932]
[1752048482825,4.32015889,152.89,152.88,2.4086932]
[1752048485431,6.5397,152.9,152.88,2.4086932]
[1752048488026,2.4086932,152.92,152.88,2.4086932]
[1752048488228,8.62542472,152.91,152.88,2.4086932]
[1752048488427,4.30874856,152.9,152.88,2.4086932]
[1752048488626,6.5393,152.91,152.88,8.9487932]
[1752048488931,4.30790449,152.9,152.82,18.23512726]
[1752048489128,2.4086932,152.92,152.88,2.4086932]
[1752048489427,4.30824713,152.91,152.88,2.4086932]
[1752048489629,4.30824713,152.9,152.88,2.4086932]
[1752048489830,2.4086932,152.92,152.88,2.4086932]
[1752048490129,6.5397,152.9,152.88,2.4086932]
[1752048490622,6.5388,152.92,152.89,2.4086932]
[1752048490827,4.30623008,152.91,152.9,2.4086932]
[1752048492233,6.5388,152.92,152.9,2.4086932]
[1752048492528,9.15268733,152.98,152.91,2.4086932]
[1752048492733,2.4086932,152.96,152.92,2.4086932]
[1752048492923,4.30785296,152.95,152.93,2.4086932]
[1752048493127,2.4086932,152.97,152.93,2.4086932]
[1752048493323,4.3074778,152.96,152.93,2.4086932]
[1752048493623,10.8450778,152.95,152.93,2.4086932]
[1752048493829,6.5376,152.95,152.93,2.4086932]
[1752048494827,8.30231717,152.99,152.93,3.76021717]
[1752048495034,16.66716834,152.98,152.93,3.76021717]
[1752048495229,4.30256622,152.97,152.94,0.04641025]
[1752048495434,6.5367,152.97,152.94,6.58411025]
[1752048496827,0.04791286,152.98,152.94,0.04641025]
[1752048497026,8.07805315,152.97,152.94,0.04641025]
[1752048497231,4.31783598,152.96,152.94,0.04641025]
[1752048497427,3.76021717,152.97,152.94,0.04641025]
[1752048497633,4.31729394,152.96,152.94,0.04641025]
[1752048497832,3.76021717,152.97,152.94,0.04641025]
[1752048498032,6.5373,152.95,152.94,0.04641025]
[1752048501931,10.29751717,152.95,152.94,1.025e-05]
[1752048502132,14.60790109,152.95,152.94,1.025e-05]
[1752048502334,18.98517879,152.95,152.94,1.025e-05]
[1752048502635,14.60790109,152.95,152.94,1.025e-05]
[1752048508439,14.60790109,152.95,152.94,1.025e-05]
[1752048511332,10.84768392,152.95,152.94,1.025e-05]
[1752048511532,14.60790109,152.95,152.94,1.025e-05]
[1752048516943,13.25511067,152.95,152.94,1.025e-05]
[1752048521543,10.84768392,152.95,152.94,1.025e-05]
[1752048522945,10.81782867,152.95,152.94,1.025e-05]
[1752048524345,15.15019875,152.95,152.94,1.025e-05]
[1752048524547,23.17091865,152.95,152.94,1.025e-05]
[1752048525147,25.5783454,152.95,152.94,1.025e-05]
[1752048527652,21.29781673,152.95,152.94,1.025e-05]
[1752048528254,21.25885852,152.95,152.94,1.025e-05]
[1752048528454,25.6181741,152.95,152.94,1.025e-05]
[1752048528959,25.61826457,152.95,152.94,1.025e-05]
[1752048529156,21.3248527,152.95,152.94,1.025e-05]
[1752048529355,21.325478,152.95,152.94,1.025e-05]
[1752048529855,16.96616242,152.95,152.94,1.025e-05]
[1752048532955,21.26328884,152.95,152.94,1.025e-05]
[1752048534058,16.96616242,152.95,152.94,1.025e-05]
[1752048534250,25.62750702,152.95,152.94,1.025e-05]
[1752048538863,34.75096965,152.95,152.94,1.025e-05]
[1752048540865,25.61460882,152.95,152.94,1.025e-05]
[1752048541165,34.73807145,152.95,152.94,1.025e-05]
[1752048546967,6.5399,152.89,152.87,6.5406]
[1752048554978,8.99767473,152.9,152.87,6.5406]
[1752048555177,4.27863372,152.89,152.87,6.5406]
[1752048555380,8.99767473,152.9,152.87,6.5406]
[1752048555678,4.27837635,152.89,152.88,6.5403]
[1752048556382,4.27837635,152.89,152.87,8.94864252]
[1752048556580,6.58943221,152.9,152.87,8.94864252]
[1752048557280,6.58943221,152.9,152.87,6.5405]
[1752048557481,6.58943221,152.9,152.87,8.94864252]
[1752048560385,6.58943221,152.9,152.87,6.5405]
[1752048560578,6.58943221,152.9,152.87,8.94864252]
[1752048561987,4.26797798,152.89,152.87,8.94864252]
[1752048562184,6.58943221,152.9,152.87,8.94864252]
[1752048562483,4.26800755,152.89,152.87,8.94864252]
[1752048562685,6.58943221,152.9,152.87,8.94864252]
[1752048562889,4.26807362,152.89,152.87,8.94864252]
[1752048563185,6.58943221,152.9,152.87,8.94864252]
[1752048563484,4.26811946,152.89,152.87,8.94864252]
[1752048563687,6.58943221,152.9,152.87,8.94864252]
[1752048563882,4.26814017,152.89,152.87,8.94864252]
[1752048564180,6.58943221,152.9,152.87,8.94864252]
[1752048564381,4.26853949,152.89,152.87,8.94864252]
[1752048564583,6.58943221,152.9,152.87,8.94864252]
[1752048564783,4.26853949,152.89,152.87,8.94864252]
[1752048564983,6.58943221,152.9,152.87,8.94864252]
[1752048565184,4.26853949,152.89,152.87,8.94864252]
[1752048565384,6.58943221,152.9,152.87,8.94864252]
[1752048565685,4.26901711,152.89,152.87,8.94864252]
[1752048565884,6.58943221,152.9,152.87,8.94864252]
[1752048566185,4.26901711,152.89,152.87,8.94864252]
[1752048566484,6.58943221,152.9,152.87,8.99183673]
[1752048566685,4.26958205,152.89,152.87,8.99183673]
[1752048566886,6.58943221,152.9,152.87,8.99183673]
[1752048567087,4.26958206,152.89,152.87,8.99183673]
[1752048567290,6.58943221,152.9,152.87,8.99183673]
[1752048567484,4.27024653,152.89,152.87,8.99183673]
[1752048567685,6.58943221,152.9,152.87,8.99183673]
[1752048567886,4.27024653,152.89,152.87,8.99183673]
[1752048568087,6.58943221,152.9,152.87,8.99183673]
[1752048568287,4.27024653,152.89,152.87,8.99183673]
[1752048568487,6.58943221,152.9,152.87,8.99183673]
[1752048568686,4.27152549,152.89,152.87,8.99183673]
[1752048568889,6.58943221,152.9,152.87,8.99183673]
[1752048569086,4.27152549,152.89,152.87,8.99183673]
[1752048569280,6.58943221,152.9,152.87,8.99183673]
[1752048569486,4.27262257,152.89,152.87,8.99183673]
[1752048569682,6.58943221,152.9,152.87,8.99183673]
[1752048569885,4.27262257,152.89,152.87,8.99183673]
[1752048570086,6.58943221,152.9,152.87,8.99183673]
[1752048570286,4.27262257,152.89,152.87,8.99183673]
[1752048570489,6.58943221,152.9,152.87,8.99183673]
[1752048570684,4.27350579,152.89,152.87,8.99183673]
[1752048570886,0.04993221,152.9,152.88,2.40814252]
[1752048571081,0.04993221,152.9,152.89,2.40814252]
[1752048571286,4.32311285,152.9,152.89,2.40760015]
[1752048571486,4.32311285,152.9,152.89,8.94750583]
[1752048571687,0.04993221,152.9,152.89,8.94750583]
[1752048572293,2.40760583,152.95,152.91,6.539]
[1752048572487,16.63672233,152.94,152.91,8.94660583]
[1752048572785,16.63672233,152.93,152.91,8.94660583]
[1752048572988,4.27318881,152.92,152.91,8.94660583]
[1752048573291,12.34292154,152.92,152.9,8.94690583]
[1752048573592,4.27318881,152.91,152.9,8.94690583]
[1752048574692,4.27384515,152.91,152.9,8.94690583]
[1752048575091,4.27384515,152.91,152.9,6.5393]
[1752048575382,4.27384515,152.91,152.89,8.94710583]
[1752048575587,6.5387,152.92,152.89,8.94710583]
[1752048575789,4.27357678,152.91,152.89,8.94710583]
[1752048575995,6.5387,152.92,152.89,8.94710583]
[1752048576188,4.28842395,152.91,152.89,8.94710583]
[1752048576389,6.5387,152.92,152.89,6.5395]
[1752048576585,4.28819299,152.91,152.89,8.94710583]
[1752048576787,6.5387,152.92,152.89,8.94710583]
[1752048576988,4.28819299,152.91,152.89,8.94710583]
[1752048577185,6.5387,152.92,152.89,8.94710583]
[1752048577486,4.2879939,152.91,152.89,8.94710583]
[1752048577695,6.5387,152.92,152.89,8.94710583]
[1752048577895,4.2879939,152.91,152.89,8.94710583]
[1752048578102,6.5387,152.92,152.89,8.94710583]
[1752048578394,4.2879939,152.91,152.89,8.94710583]
[1752048578599,6.5387,152.92,152.89,8.94710583]
[1752048578787,4.28782165,152.91,152.89,8.94710583]
[1752048578992,6.5387,152.92,152.89,8.94710583]
[1752048579192,4.28782165,152.91,152.89,8.94710583]
[1752048579487,6.5387,152.92,152.89,8.94710583]
[1752048579688,4.21625662,152.91,152.89,8.94710583]
[1752048579991,6.5387,152.92,152.89,8.94710583]
[1752048580190,4.21625662,152.91,152.89,8.94710583]
[1752048580386,6.5387,152.92,152.89,8.94710583]
[1752048580591,6.62376422,152.91,152.88,0.04742657]
[1752048580792,4.21615839,152.9,152.88,0.04742657]
[1752048580992,2.40760583,152.91,152.88,0.04742657]
[1752048581191,10.7564592,152.9,152.88,0.04742657]
[1752048581392,4.2167592,152.89,152.88,0.04742657]
[1752048581601,17.51066417,152.89,152.88,0.04742657]
[1752048583097,15.10305834,152.89,152.88,0.04742657]
[1752048583802,23.18776253,152.89,152.88,0.04742657]
[1752048584498,25.59536836,152.89,152.88,0.04742657]
[1752048586602,21.37860916,152.89,152.88,0.04742657]
[1752048586801,25.58035647,152.89,152.88,0.04742657]
[1752048587301,6.5406,152.88,152.85,8.94900583]
[1752048587492,8.94820583,152.88,152.85,8.94900583]
[1752048588093,6.5409,152.87,152.84,8.94960583]
[1752048588297,4.20156297,152.86,152.84,6.542]
[1752048588492,8.99533308,152.87,152.84,6.542]
[1752048588693,4.20158886,152.86,152.84,6.542]
[1752048588897,0.04682725,152.87,152.84,2.40760583]
[1752048589100,0.04682725,152.87,152.85,2.40760583]
[1752048590604,0.04682725,152.87,152.86,6.5411]
[1752048605224,0.04682725,152.87,152.86,8.94870583]
[1752048605924,2.40760583,152.91,152.89,6.5395]
[1752048606620,8.94650583,152.92,152.89,6.5395]
[1752048606825,4.1921008,152.91,152.89,6.5395]
[1752048607025,8.94650583,152.92,152.89,6.5395]
[1752048607325,4.1921008,152.91,152.89,6.5395]
[1752048607526,8.94650583,152.92,152.89,6.5395]
[1752048607729,4.1919907,152.91,152.89,6.5395]
[1752048607922,8.94650583,152.92,152.89,6.5395]
[1752048608119,4.1919907,152.91,152.89,6.5395]
[1752048608323,9.1717925,152.96,152.89,2.40760583]
[1752048608625,2.40760583,152.94,152.9,2.40760583]
[1752048608825,4.19145227,152.93,152.91,6.5388]
[1752048609026,8.94560583,152.94,152.91,6.5388]
[1752048609223,4.19142639,152.93,152.91,6.5388]
[1752048609527,2.40760583,152.94,152.91,6.5388]
[1752048609827,4.3009269,152.93,152.91,6.5388]
[1752048610028,4.3009269,152.92,152.91,6.5388]
[1752048610428,4.3009269,152.92,152.9,8.94680583]
[1752048610628,6.5381,152.93,152.9,8.94680583]
[1752048610929,4.30047096,152.92,152.9,8.94680583]
[1752048611125,6.5381,152.93,152.9,8.94680583]
[1752048611325,4.31998517,152.92,152.9,8.94680583]
[1752048611528,6.5381,152.93,152.9,8.94680583]
[1752048611829,4.31981075,152.92,152.91,6.539]
[1752048613430,4.31981075,152.92,152.9,8.94690583]
[1752048613730,6.5382,152.93,152.9,8.94690583]
[1752048614029,4.318862,152.92,152.9,8.94690583]
[1752048614229,6.5382,152.93,152.9,8.94690583]
[1752048614430,4.3184715,152.92,152.9,8.94690583]
[1752048614730,6.5382,152.93,152.9,8.94690583]
[1752048615024,4.3184715,152.92,152.9,8.94690583]
[1752048615232,8.94580583,152.93,152.9,8.94690583]
[1752048615529,4.31814534,152.92,152.9,8.94690583]
[1752048615730,8.94580583,152.93,152.9,8.94690583]
[1752048615931,4.31814534,152.92,152.9,8.94690583]
[1752048616133,8.94580583,152.93,152.9,8.94690583]
[1752048616330,4.31800968,152.92,152.9,8.94690583]
[1752048616531,8.94580583,152.93,152.9,8.94690583]
[1752048616727,4.31793069,152.92,152.9,8.94690583]
[1752048616928,8.94580583,152.93,152.9,8.94690583]
[1752048617127,4.31793069,152.92,152.9,8.94690583]
[1752048617329,8.94580583,152.93,152.9,8.94690583]
[1752048617531,13.26896238,152.92,152.9,6.5393]
[1752048617834,8.94620583,152.92,152.9,6.5393]
[1752048618533,2.40760583,152.92,152.9,6.5393]
[1752048622438,2.40760583,152.91,152.87,2.40760583]
[1752048622832,4.32296867,152.9,152.87,2.40760583]
[1752048623136,8.94680583,152.91,152.88,6.54]
[1752048623335,4.32335395,152.9,152.88,6.54]
[1752048623534,8.94680583,152.91,152.88,6.54]
[1752048623736,4.32831862,152.9,152.88,6.54]
[1752048624034,8.94680583,152.91,152.88,6.54]
[1752048624236,4.32831862,152.9,152.88,6.54]
[1752048624431,8.94680583,152.91,152.88,6.54]
[1752048624628,4.32852068,152.9,152.88,6.54]
[1752048624828,8.94680583,152.91,152.89,6.5398]
[1752048625034,6.73612652,152.9,152.89,6.5398]
[1752048625233,6.73612652,152.9,152.86,2.40760583]
[1752048625433,2.40760583,152.9,152.88,6.54]
[1752048626034,6.5392,152.91,152.88,6.54]
[1752048626238,6.73633532,152.9,152.88,6.54]
[1752048626439,2.40760583,152.9,152.88,6.54]
[1752048627342,2.40760583,152.9,152.89,6.5399]
[1752048627533,6.73637154,152.9,152.89,6.5399]
[1752048629942,4.32876571,152.9,152.89,6.5399]
[1752048631343,4.32876571,152.9,152.84,148.38846775]
[1752048631641,2.40838712,152.87,152.84,148.38846775]
[1752048632042,2.40838712,152.87,152.85,6.5413]
[1752048632542,2.40838712,152.86,152.84,148.43347484]
[1752048633041,6.73933436,152.85,152.84,0.04500709]
[1752048634542,6.74127086,152.85,152.84,0.04500709]
[1752048635945,6.74127086,152.85,152.84,6.58700709]
[1752048636341,2.41032362,152.86,152.84,6.58700709]
[1752048637339,2.41032362,152.86,152.85,6.5416]
[1752048637545,6.7379068,152.86,152.85,6.5416]
[1752048638439,0.04266956,152.88,152.84,0.04500709]
[1752048638645,2.41032362,152.86,152.84,0.04500709]
[1752048639545,2.41032362,152.86,152.85,6.5416]
[1752048640945,2.41032362,152.86,152.84,6.58680709]
[1752048642347,8.95102362,152.87,152.84,6.58680709]
[1752048647348,2.41032362,152.87,152.85,6.5416]
[1752048648048,0.04266956,152.88,152.85,2.41032362]
[1752048649151,0.04266956,152.88,152.86,6.5411]
[1752048650752,0.04266956,152.88,152.86,8.95142362]
[1752048651453,0.04266956,152.88,152.87,6.5407]
[1752048657260,0.04266956,152.88,152.86,8.95122362]
[1752048657654,0.04266956,152.88,152.86,6.5409]
[1752048662062,6.58296956,152.88,152.85,8.95172362]
[1752048662563,6.58296956,152.88,152.85,6.5414]
[1752048662862,6.58296956,152.88,152.85,8.95172362]
[1752048665159,6.5407,152.87,152.85,6.5414]
[1752048665360,2.45299318,152.88,152.84,6.58690709]
[1752048665659,2.45299318,152.88,152.84,0.04500709]
[1752048665865,10.85943004,152.87,152.84,6.58680709]
[1752048666065,6.5409,152.87,152.84,6.58680709]
[1752048667765,6.5412,152.86,152.84,6.58680709]
[1752048667968,6.5412,152.86,152.84,0.04500709]
[1752048672667,8.95102362,152.87,152.84,6.58690709]
[1752048672870,4.31122714,152.86,152.84,2.45533071]
[1752048673069,8.95102362,152.87,152.84,8.99713071]
[1752048673367,4.31152255,152.86,152.84,8.99713071]
[1752048673568,6.5407,152.87,152.84,8.99713071]
[1752048673758,4.31164862,152.86,152.84,8.99713071]
[1752048673960,6.5407,152.87,152.84,8.99713071]
[1752048674159,4.31164862,152.86,152.84,2.45533071]
[1752048674367,0.04266956,152.88,152.85,2.41032362]
[1752048674564,4.31213378,152.87,152.85,2.41032362]
[1752048674769,0.04266956,152.88,152.85,2.41032362]
[1752048674966,4.31173817,152.87,152.85,2.41032362]
[1752048675267,0.04266956,152.88,152.85,2.41032362]
[1752048675467,4.31238821,152.87,152.85,2.41032362]
[1752048675770,0.04266956,152.88,152.86,6.5411]
[1752048675970,4.31238821,152.87,152.86,6.5411]
[1752048677672,4.31238821,152.87,152.86,8.95142362]
[1752048679375,4.31238821,152.87,152.86,6.5411]
[1752048679576,4.31238821,152.87,152.86,8.95142362]
[1752048683778,4.31238821,152.87,152.86,6.5411]
[1752048685081,4.31238821,152.87,152.85,8.95172362]
[1752048685381,6.58316956,152.88,152.85,2.41032362]
[1752048685682,4.3153267,152.87,152.85,2.41032362]
[1752048685882,6.58316956,152.88,152.85,6.5415]
[1752048686079,4.32401791,152.87,152.85,2.41032362]
[1752048686280,6.58316956,152.88,152.85,2.41032362]
[1752048686479,4.32422882,152.87,152.85,2.41032362]
[1752048686680,6.58316956,152.88,152.85,2.41032362]
[1752048686880,4.32422882,152.87,152.84,2.45533071]
[1752048687186,4.32422882,152.86,152.84,2.45533071]
[1752048687377,6.5408,152.87,152.84,8.99713071]
[1752048687578,4.32485006,152.86,152.84,8.99713071]
[1752048687778,6.5408,152.87,152.84,8.99713071]
[1752048688078,4.32485006,152.86,152.84,8.99713071]
[1752048688278,6.5408,152.87,152.84,8.99713071]
[1752048688483,4.32508853,152.86,152.84,8.99713071]
[1752048688676,6.5408,152.87,152.84,8.99713071]
[1752048688878,4.32508853,152.86,152.84,8.99713071]
[1752048689083,6.5408,152.87,152.84,6.58680709]
[1752048689284,4.32534163,152.86,152.84,6.58680709]
[1752048689585,4.32556086,152.85,152.84,0.04500709]
[1752048694085,4.32556086,152.85,152.84,6.58700709]
[1752048699192,2.4093611,152.87,152.84,6.58700709]
[1752048699391,4.3137325,152.86,152.84,6.58700709]
[1752048699587,2.4093611,152.87,152.84,6.58700709]
[1752048699588,4.3137325,152.85,152.84,6.58700709]
[1752048708203,4.3137325,152.85,152.84,0.04500709]
[1752048709897,4.3137325,152.85,152.84,6.58700709]
[1752048714210,4.31456966,152.85,152.84,6.58700709]
[1752048715207,6.5407,152.87,152.84,6.58700709]
[1752048715403,4.31450366,152.86,152.84,6.58700709]
[1752048715803,6.5407,152.87,152.84,6.58700709]
[1752048716002,4.31450366,152.86,152.84,0.04500709]
[1752048716208,6.5407,152.87,152.85,6.5416]
[1752048717109,4.3078524,152.86,152.85,6.5416]
[1752048717309,6.5407,152.87,152.85,6.5416]
[1752048717809,4.30611809,152.86,152.85,6.5416]
[1752048721708,4.30611809,152.86,152.84,0.04500709]
[1752048721905,2.452278,152.88,152.84,0.04500709]
[1752048721906,4.30611809,152.85,152.84,0.04500709]
[1752048722305,4.30611809,152.85,152.84,6.58700709]
[1752048723310,4.30611809,152.85,152.84,8.99661553]
[1752048724913,0.04266956,152.88,152.87,6.5407]
[1752048725211,4.34240708,152.88,152.87,6.5407]
[1752048727615,4.3541135,152.88,152.87,6.5407]
[1752048734016,4.3541135,152.88,152.86,8.94928825]
[1752048734318,0.04266956,152.88,152.86,8.94928825]
[1752048737022,0.04266956,152.88,152.86,6.5409]
[1752048737421,0.04266956,152.88,152.85,8.94978825]
[1752048737627,0.04266956,152.88,152.85,2.40838825]
[1752048738524,0.04266956,152.88,152.86,6.541]
[1752048742127,0.04266956,152.88,152.87,6.5407]
[1752048742323,4.3506786,152.88,152.85,2.40838825]
[1752048742521,0.04266956,152.88,152.86,2.40838825]
[1752048743022,0.04266956,152.88,152.85,2.40838825]
[1752048743524,0.04266956,152.88,152.87,6.5407]
[1752048743721,4.34990084,152.88,152.87,6.5407]
[1752048743922,4.34990084,152.88,152.85,2.40838825]
[1752048744120,0.04266956,152.88,152.86,6.5409]
[1752048744516,2.40838825,152.87,152.84,0.04500709]
[1752048745021,4.30749448,152.86,152.84,6.58680709]
[1752048745223,2.40838825,152.86,152.84,0.04500709]
[1752048745424,4.30736704,152.85,152.84,0.04500709]
[1752048747128,4.30736704,152.85,152.84,6.58700709]
[1752048748728,2.40838825,152.87,152.85,6.5414]